bitfinex/quotes_SOLUSD_20240729
["timestamp","ask_amount","ask_price","bid_price","bid_amount"]
[1722226868070,45.0,192.71,192.6,20.17]
[1722226868759,45.0,192.71,192.62,25.93]
[1722226868960,45.0,192.71,192.63,20.0]
[1722226869371,16.3609,192.72,192.63,20.0]
[1722226869574,6.2387,192.75,192.65,25.93]
[1722226869757,6.2387,192.75,192.66,20.0]
[1722226870074,46.03844733,192.74,192.66,20.0]
[1722226870677,45.0,192.74,192.66,20.0]
[1722226871657,7.27714733,192.75,192.66,20.0]
[1722226871860,45.0,192.74,192.66,20.0]
[1722226872375,6.2387,192.75,192.66,20.0]
[1722226872964,61.83844733,192.74,192.6,25.93]
[1722226874277,61.83844733,192.74,192.61,20.0]
[1722226876552,46.03844733,192.74,192.61,20.0]
[1722226876758,6.2387,192.75,192.63,25.93]
[1722226876759,7.27714733,192.75,192.63,25.93]
[1722226877179,7.27714733,192.75,192.64,20.0]
[1722226878881,45.0,192.74,192.64,20.0]
[1722226879063,1.03844733,192.73,192.64,20.0]
[1722226879677,1.03844733,192.73,192.61,20.0]
[1722226880264,45.0,192.74,192.61,21.03805931]
[1722226880476,45.0,192.74,192.63,25.93]
[1722226880793,45.0,192.74,192.64,20.0]
[1722226881781,6.2387,192.75,192.64,20.0]
[1722226881967,6.2387,192.75,192.66,25.93]
[1722226882174,6.2387,192.75,192.67,20.0]
[1722226884587,1.03844733,192.74,192.67,20.0]
[1722226884783,1.03844733,192.73,192.64,20.0]
[1722226885571,45.0,192.74,192.64,20.0]
[1722226886290,1.03844733,192.73,192.64,20.0]
[1722226886483,45.0,192.74,192.64,20.0]
[1722226887169,46.03844733,192.74,192.64,20.0]
[1722226887372,1.03844733,192.73,192.6,25.93]
[1722226887574,1.03844733,192.73,192.61,20.0]
[1722226887776,45.0,192.74,192.62,1.03805197]
[1722226888089,45.0,192.74,192.63,25.93]
[1722226888294,45.0,192.74,192.64,20.0]
[1722226888594,7.27714733,192.75,192.66,25.93]
[1722226888795,6.2387,192.75,192.67,20.0]
[1722226889693,6.2387,192.75,192.68,0.17]
[1722226891674,6.2387,192.75,192.67,20.0]
[1722226893296,7.27714733,192.75,192.67,20.0]
[1722226893499,6.2387,192.75,192.67,20.0]
[1722226893712,6.4399,192.8,192.68,1.03766491]
[1722226893998,6.4399,192.8,192.7,25.93]
[1722226894194,6.4399,192.8,192.71,21.20747156]
[1722226894382,6.4399,192.8,192.71,20.17]
[1722226894782,6.4399,192.8,192.71,20.0]
[1722226894783,1.03844733,192.79,192.71,20.0]
[1722226895175,7.47834733,192.8,192.71,20.0]
[1722226895375,45.0,192.79,192.68,20.0]
[1722226896277,6.4399,192.8,192.68,21.03764203]
[1722226896481,6.4399,192.8,192.69,0.34]
[1722226897892,6.4399,192.8,192.69,45.34]
[1722226898095,6.4399,192.8,192.7,20.0]
[1722226898293,6.4399,192.8,192.71,0.17]
[1722226898600,6.4399,192.8,192.71,1.2074857]
[1722226899683,6.4399,192.8,192.71,0.17]
[1722226899884,6.4399,192.8,192.73,25.93]
[1722226900084,6.0751,192.85,192.74,21.03728584]
[1722226900276,45.0,192.84,192.74,20.0]
[1722226900485,1.03844733,192.83,192.74,20.0]
[1722226900785,1.03844733,192.83,192.71,20.34]
[1722226901187,45.0,192.84,192.71,20.34]
[1722226901389,45.0,192.84,192.71,21.37743759]
[1722226902585,1.03844733,192.83,192.71,20.34]
[1722226904483,45.0,192.84,192.71,20.34]
[1722226904692,45.0,192.84,192.72,1.03743306]
[1722226904878,45.0,192.84,192.73,0.34]
[1722226905080,45.0,192.84,192.71,21.37741614]
[1722226907814,45.0,192.84,192.73,25.93]
[1722226908010,45.0,192.84,192.74,0.17]
[1722226908185,45.0,192.84,192.74,20.17]
[1722226908600,6.0751,192.85,192.74,21.20731924]
[1722226908812,6.0751,192.85,192.76,25.93]
[1722226909110,6.0751,192.85,192.77,20.0]
[1722226909611,6.0751,192.85,192.77,21.03663911]
[1722226910111,6.0751,192.85,192.77,20.0]
[1722226912414,6.0751,192.85,192.77,21.0372134]
[1722226912594,6.0751,192.85,192.77,20.0]
[1722226912904,7.11354733,192.85,192.77,20.0]
[1722226913091,6.0751,192.85,192.77,20.0]
[1722226913292,45.0,192.84,192.74,20.17]
[1722226913497,0.17,192.83,192.74,20.0]
[1722226913812,6.0347,192.81,192.67,15.1256]
[1722226914104,6.0347,192.81,192.68,1.03768205]
[1722226914105,45.0,192.8,192.68,1.03768205]
[1722226915007,45.0,192.8,192.67,44.19251409]
[1722226915306,45.0,192.8,192.68,20.0]
[1722226915503,45.0,192.8,192.69,1.03763475]
[1722226915715,45.0,192.8,192.67,43.15487951]
[1722226916007,16.76044733,192.79,192.67,43.15487951]
[1722226916315,45.0,192.78,192.64,25.93]
[1722226916498,45.0,192.78,192.62,281.75128658]
[1722226916499,7.41754733,192.77,192.62,47.28128658]
[1722226916811,46.03844733,192.76,192.62,41.8378]
[1722226917004,46.03844733,192.76,192.62,43.98458632]
[1722226917390,46.03844733,192.76,192.62,18.05458632]
[1722226917598,61.66844733,192.76,192.62,28.07678632]
[1722226917792,0.34,192.75,192.62,28.07678632]
[1722226918101,1.03844733,192.74,192.62,28.07678632]
[1722226918799,1.03844733,192.74,192.63,20.0]
[1722226919382,45.0,192.76,192.63,20.0]
[1722226919705,46.03844733,192.76,192.63,20.0]
[1722226919886,46.03844733,192.76,192.64,0.17]
[1722226920383,46.03844733,192.76,192.65,25.93]
[1722226920591,45.0,192.76,192.66,20.0]
[1722226920789,45.0,192.76,192.64,0.17]
[1722226920790,45.0,192.76,192.64,1.20776008]
[1722226921088,6.3791,192.77,192.67,25.93]
[1722226921288,6.3791,192.77,192.68,20.0]
[1722226921588,6.3791,192.77,192.68,21.03764525]
[1722226922001,6.3791,192.77,192.7,25.93]
[1722226922205,15.722,192.79,192.71,21.03754337]
[1722226922406,6.3791,192.82,192.73,25.93]
[1722226922607,6.3791,192.82,192.74,20.0]
[1722226924698,6.3791,192.82,192.74,21.03735598]
[1722226925098,15.722,192.84,192.76,25.93]
[1722226925300,15.722,192.84,192.77,20.0]
[1722226925511,6.3791,192.87,192.77,20.0]
[1722226928509,6.3791,192.87,192.78,1.03715666]
[1722226929196,6.3791,192.87,192.79,25.93]
[1722226929403,6.3791,192.87,192.8,20.0]
[1722226929607,6.3791,192.87,192.8,21.03708456]
[1722226929927,22.1011,192.94,192.82,25.93]
[1722226930098,1.03844733,192.93,192.83,20.0]
[1722226930416,22.1011,192.94,192.83,20.0]
[1722226930898,22.1011,192.94,192.83,21.03691225]
[1722226931506,5.18504733,192.93,192.83,20.0]
[1722226931797,5.18504733,192.93,192.8,20.0]
[1722226932000,4.1468,192.92,192.8,20.0]
[1722226932195,46.03844733,192.91,192.8,20.0]
[1722226932416,46.03844733,192.91,192.77,20.0]
[1722226932723,46.03844733,192.91,192.78,0.34]
[1722226932895,22.1011,192.94,192.79,26.96695475]
[1722226932896,45.0,192.92,192.79,26.96695475]
[1722226933091,22.1011,192.94,192.8,20.34]
[1722226933092,45.0,192.93,192.8,20.34]
[1722226934499,1.03844733,192.92,192.8,20.34]
[1722226934695,1.03844733,192.92,192.8,20.17]
[1722226934896,1.03844733,192.92,192.8,20.0]
[1722226935296,5.18524733,192.92,192.8,20.0]
[1722226935627,45.0,192.91,192.8,20.0]
[1722226935801,1.03844733,192.9,192.8,20.0]
[1722226936006,1.03844733,192.89,192.8,20.0]
[1722226936807,1.03844733,192.92,192.8,20.0]
[1722226937009,4.1475,192.89,192.8,20.0]
[1722226937220,4.1475,192.89,192.76,28.03661258]
[1722226937221,1.03844733,192.88,192.77,20.0]
[1722226937419,4.1468,192.92,192.78,0.17]
[1722226937623,46.20844733,192.91,192.78,0.17]
[1722226938802,50.35554733,192.91,192.78,0.17]
[1722226939014,4.1475,192.89,192.76,26.1]
[1722226939228,46.03844733,192.88,192.76,25.93]
[1722226939726,46.03844733,192.88,192.77,0.17]
[1722226940023,1.03844733,192.87,192.77,0.34]
[1722226940197,1.20844733,192.91,192.77,0.34]
[1722226940399,46.20844733,192.91,192.77,20.34]
[1722226940598,48.0311,192.94,192.77,21.37711275]
[1722226940822,1.03844733,192.91,192.78,45.0]
[1722226941120,1.03844733,192.91,192.79,20.34]
[1722226941620,22.1011,192.94,192.82,25.93]
[1722226941831,22.1011,192.94,192.83,20.17]
[1722226942127,1.03844733,192.93,192.83,20.0]
[1722226942634,16.63844733,192.93,192.8,20.0]
[1722226942922,5.18504733,192.93,192.8,20.0]
[1722226943224,45.0,192.92,192.8,20.0]
[1722226943529,46.03844733,192.93,192.81,0.17]
[1722226944405,22.1011,192.94,192.82,25.93]
[1722226944603,22.1011,192.94,192.83,35.2302]
[1722226945624,6.3791,192.94,192.83,35.2302]
[1722226945805,6.3791,192.94,192.83,36.26701298]
[1722226947421,0.8002087,192.97,192.84,0.17]
[1722226947629,45.8002087,192.97,192.84,1.20676302]
[1722226947919,45.8002087,192.97,192.85,0.17]
[1722226948235,45.8002087,192.97,192.85,27.13671908]
[1722226948526,45.8002087,192.97,192.86,20.0]
[1722226948726,45.8002087,192.97,192.87,1.03672]
[1722226949105,45.8002087,192.97,192.86,20.0]
[1722226949530,0.8002087,192.97,192.88,25.93]
[1722226949702,0.8002087,192.97,192.89,21.20653182]
[1722226950042,0.8002087,192.97,192.9,1.03649995]
[1722226950220,0.8002087,192.97,192.89,20.17]
[1722226950415,0.8002087,192.97,192.9,0.17]
[1722226950719,0.8002087,192.97,192.89,20.17]
[1722226951037,0.8002087,192.97,192.89,20.0]
[1722226951932,0.8002087,192.97,192.9,0.34]
[1722226952136,0.8002087,192.97,192.91,15.1672]
[1722226952338,0.8002087,192.97,192.92,20.0]
[1722226967239,0.8002087,192.97,192.88,20.0]
[1722226967840,1.83865603,192.97,192.87,20.17]
[1722226968046,1.83865603,192.97,192.86,15.5654]
[1722226968047,0.8002087,192.97,192.86,15.5654]
[1722226968230,1.03844733,192.96,192.82,5.786045]
[1722226968436,7.68304733,192.95,192.82,5.786045]
[1722226968843,45.0,192.94,192.82,5.786045]
[1722226969020,1.03844733,192.93,192.82,2.110145]
[1722226969228,45.0,192.94,192.81,41.4954]
[1722226969427,46.03844733,192.94,192.81,41.4954]
[1722226969855,6.6446,192.95,192.84,25.93]
[1722226970154,6.6446,192.95,192.84,26.96669928]
[1722226970353,6.6446,192.95,192.85,20.0]
[1722226970533,0.8002087,192.97,192.87,25.93]
[1722226970739,0.8002087,192.97,192.88,21.03660947]
[1722226971552,0.8002087,192.97,192.89,0.17]
[1722226973157,0.8002087,192.97,192.88,20.0]
[1722226974054,0.8002087,192.97,192.89,0.17]
[1722226975451,0.8002087,192.97,192.89,15.205]
[1722226975949,0.8002087,192.97,192.9,45.93]
[1722226977351,0.8002087,192.97,192.9,20.0]
[1722226983070,0.8002087,192.97,192.9,45.93]
[1722226985151,0.8002087,192.97,192.9,20.0]
[1722226986645,0.8002087,192.97,192.9,45.93]
[1722226991865,0.8002087,192.97,192.9,20.0]
[1722226999276,0.8002087,192.97,192.96,12.92]
[1722226999655,0.8002087,192.97,192.96,32.92]
[1722227000453,18.70174898,193.12,192.96,62.22945385]
[1722227000662,18.70174898,193.12,193.07,12.92]
[1722227000865,18.70174898,193.12,193.0,51.68]
[1722227000866,18.70174898,193.12,193.09,12.92]
[1722227001249,18.70174898,193.12,193.04,25.8]
[1722227001452,18.70174898,193.12,193.05,20.0]
[1722227001655,18.70174898,193.12,192.98,25.8]
[1722227001857,18.70174898,193.12,192.99,20.34]
[1722227002064,19.74019631,193.12,192.99,20.34]
[1722227002773,45.0,193.11,192.99,20.34]
[1722227003170,18.70174898,193.12,192.99,21.37590279]
[1722227003475,1.03844733,193.12,192.99,20.34]
[1722227004148,1.03844733,193.13,192.99,21.37586345]
[1722227004472,6.0017,193.14,193.01,25.8]
[1722227004679,7.04014733,193.14,193.02,66.37573128]
[1722227004867,7.04014733,193.14,193.02,20.17]
[1722227005377,7.04014733,193.14,193.03,0.17]
[1722227006261,11.18234733,193.14,193.02,20.17]
[1722227006465,45.0,193.13,193.0,25.8]
[1722227006658,45.0,193.13,193.01,20.17]
[1722227006857,1.03844733,193.12,193.01,20.17]
[1722227008061,1.03844733,193.12,193.01,0.17]
[1722227008263,1.03844733,193.12,193.0,20.17]
[1722227009962,45.0,193.13,193.0,20.17]
[1722227010170,46.03844733,193.13,193.0,20.17]
[1722227010975,45.0,193.13,193.0,20.17]
[1722227011162,45.0,193.13,193.01,0.17]
[1722227011675,1.03844733,193.12,193.01,0.17]
[1722227011983,45.0,193.13,193.01,0.17]
[1722227012156,7.04014733,193.14,193.01,45.17]
[1722227012473,7.04014733,193.14,193.02,20.17]
[1722227013073,6.0017,193.14,193.02,20.17]
[1722227013397,7.04014733,193.14,193.02,20.17]
[1722227014278,45.0,193.13,193.02,20.17]
[1722227014481,45.0,193.13,193.02,0.17]
[1722227014683,45.0,193.13,193.01,0.34]
[1722227016079,1.03844733,193.12,193.01,0.34]
[1722227016382,1.03844733,193.11,193.01,0.34]
[1722227016580,45.0,193.13,193.01,0.34]
[1722227016764,1.03844733,193.12,193.01,0.34]
[1722227017078,1.03844733,193.12,193.01,0.17]
[1722227017279,1.03844733,193.13,193.02,15.3065]
[1722227017487,46.03844733,193.13,193.03,0.17]
[1722227017668,45.0,193.13,193.03,20.17]
[1722227018066,7.04014733,193.14,193.03,20.17]
[1722227018484,45.0,193.13,193.03,20.17]
[1722227018788,1.03844733,193.12,193.03,20.17]
[1722227021268,1.03844733,193.12,193.06,12.91]
[1722227021494,57.91,193.13,193.06,12.91]
[1722227021662,1.03844733,193.12,193.06,12.91]
[1722227022376,12.91,193.11,193.05,12.91]
[1722227022690,57.91,193.13,193.06,12.91]
[1722227022890,12.91,193.12,193.06,12.91]
[1722227023879,12.91,193.11,193.04,12.91]
[1722227024079,1.03844733,193.1,193.05,20.0]
[1722227024381,12.91,193.12,193.05,32.91]
[1722227024891,12.91,193.09,193.02,15.3065]
[1722227025064,12.91,193.07,193.0,12.91]
[1722227025269,12.91,193.04,192.97,28.3541]
[1722227025469,0.34,193.12,192.97,28.3541]
[1722227025470,0.34,193.12,193.0,12.91]
[1722227025670,5.35094733,193.12,192.97,15.4441]
[1722227025882,45.0,193.11,192.97,15.4441]
[1722227026080,1.03844733,193.1,192.97,15.4441]
[1722227026371,1.03844733,193.1,192.98,0.17]
[1722227026573,12.91,193.09,193.01,12.91]
[1722227026882,12.91,193.1,193.04,12.91]
[1722227027270,12.91,193.1,193.03,12.91]
[1722227027470,12.91,193.09,193.02,12.91]
[1722227027784,6.0017,193.14,193.07,12.91]
[1722227027975,12.91,193.13,193.07,12.91]
[1722227028996,13.94844733,193.12,193.03,20.0]
[1722227029201,57.91,193.11,193.04,12.91]
[1722227029369,12.91,193.11,193.05,32.91]
[1722227030079,12.91,193.11,193.05,12.91]
[1722227030397,12.91,193.12,193.05,12.91]
[1722227030774,18.9117,193.14,193.08,12.91]
[1722227031191,0.8002087,193.17,193.1,12.91]
[1722227031374,0.8002087,193.17,193.13,12.91]
[1722227032084,0.8002087,193.17,193.1,1.03543643]
[1722227032292,0.8002087,193.17,193.12,12.91]
[1722227032598,0.8002087,193.17,193.1,20.0]
[1722227032599,0.8002087,193.17,193.14,12.91]
[1722227032790,0.8002087,193.17,193.12,12.91]
[1722227033599,0.8002087,193.17,193.1,20.0]
[1722227033600,0.8002087,193.17,193.13,12.91]
[1722227034100,0.8002087,193.17,193.12,12.91]
[1722227035289,0.8002087,193.17,193.11,12.91]
[1722227035480,13.7102087,193.17,193.11,12.91]
[1722227036476,13.7102087,193.17,193.11,13.94557643]
[1722227036697,13.7102087,193.17,193.11,12.91]
[1722227037082,13.7102087,193.17,193.1,32.91]
[1722227037403,12.91,193.16,193.1,32.91]
[1722227037989,12.91,193.16,193.1,20.0]
[1722227038402,12.91,193.15,193.05,15.5114]
[1722227038605,6.6491,193.16,193.08,12.91]
[1722227038903,6.6491,193.16,193.09,32.91]
[1722227039283,12.91,193.15,193.09,32.91]
[1722227040383,6.6491,193.16,193.11,12.91]
[1722227042488,12.91,193.15,193.09,20.0]
[1722227042697,6.6491,193.16,193.06,21.20561175]
[1722227043004,0.8002087,193.17,193.12,12.91]
[1722227043405,0.8002087,193.17,193.13,12.91]
[1722227046404,0.8002087,193.17,193.11,12.91]
[1722227046696,0.8002087,193.17,193.12,20.0]
[1722227047407,0.8002087,193.17,193.12,32.91]
[1722227047607,0.8002087,193.17,193.12,20.0]
[1722227047806,0.8002087,193.17,193.12,12.91]
[1722227048495,0.8002087,193.17,193.11,12.91]
[1722227048807,0.8002087,193.17,193.12,20.0]
[1722227049207,0.8002087,193.17,193.12,32.91]
[1722227050102,0.8002087,193.17,193.12,20.0]
[1722227050308,0.8002087,193.17,193.12,12.91]
[1722227050608,0.8002087,193.17,193.05,15.5114]
[1722227050609,12.91,193.16,193.05,15.5114]
[1722227050789,12.91,193.15,193.08,12.91]
[1722227051617,12.91,193.16,193.1,12.91]
[1722227051802,13.7102087,193.17,193.11,12.91]
[1722227052802,0.8002087,193.17,193.11,12.91]
[1722227053716,0.8002087,193.17,193.12,12.91]
[1722227055506,0.8002087,193.17,193.13,12.91]
[1722227057611,0.8002087,193.17,193.14,12.91]
[1722227062123,0.8002087,193.17,193.13,12.91]
[1722227062928,0.8002087,193.17,193.12,12.91]
[1722227063223,0.8002087,193.17,193.11,12.91]
[1722227064126,0.8002087,193.17,193.12,12.91]
[1722227066398,0.8002087,193.17,193.13,12.91]
[1722227067819,0.8002087,193.17,193.14,12.91]
[1722227069330,0.8002087,193.17,193.13,12.91]
[1722227070828,0.8002087,193.17,193.12,12.91]
[1722227071035,13.7102087,193.17,193.1,12.91]
[1722227071338,13.7102087,193.17,193.11,20.0]
[1722227072032,0.7002087,193.17,193.12,12.91]
[1722227072213,0.7002087,193.17,193.13,12.91]
[1722227072931,0.7002087,193.17,193.12,12.91]
[1722227074443,0.7002087,193.17,193.13,12.91]
[1722227078733,0.7002087,193.17,193.11,20.0]
[1722227078910,0.7002087,193.17,193.11,12.91]
[1722227079112,0.7002087,193.17,193.15,12.91]
[1722227079311,0.7002087,193.17,193.16,13.94529447]
[1722227079525,0.7002087,193.17,193.16,12.91]
[1722227080229,0.7002087,193.17,193.15,12.91]
[1722227080417,0.7002087,193.17,193.14,12.91]
[1722227080824,0.7002087,193.17,193.16,12.91]
[1722227084727,0.7002087,193.17,193.15,12.91]
[1722227085446,0.7002087,193.17,193.16,12.91]
[1722227086329,0.7002087,193.17,193.16,32.91]
[1722227086644,0.7002087,193.17,193.16,12.91]
[1722227087144,0.7002087,193.17,193.16,32.91]
[1722227088232,0.7002087,193.17,193.16,20.0]
[1722227088435,0.7002087,193.17,193.15,12.91]
[1722227088648,0.7002087,193.17,193.16,21.03528741]
[1722227088881,0.7002087,193.17,193.16,20.0]
[1722227089556,0.7002087,193.17,193.07,1.03529731]
[1722227089727,0.7002087,193.17,193.13,12.91]
[1722227089926,0.7002087,193.17,193.14,20.0]
[1722227090322,0.7002087,193.17,193.14,32.91]
[1722227091454,0.7002087,193.17,193.15,13.94533626]
[1722227092737,0.7002087,193.17,193.15,12.91]
[1722227094548,0.7002087,193.17,193.14,20.0]
[1722227094854,0.7002087,193.17,193.11,20.0]
[1722227095033,0.7002087,193.17,193.12,0.17]
[1722227096373,0.7002087,193.17,193.14,12.91]
[1722227096737,0.7002087,193.17,193.13,12.91]
[1722227096937,0.7002087,193.17,193.14,20.0]
[1722227098828,0.7002087,193.17,193.13,12.91]
[1722227099049,0.7002087,193.17,193.14,20.0]
[1722227102531,0.7002087,193.17,193.14,32.91]
[1722227105252,0.7002087,193.17,193.14,12.91]
[1722227106556,13.6102087,193.17,193.07,1.03540927]
[1722227106763,0.7002087,193.17,193.11,12.91]
[1722227106962,0.7002087,193.17,193.12,32.91]
[1722227107140,0.7002087,193.17,193.12,12.91]
[1722227107338,0.7002087,193.17,193.13,20.0]
[1722227107538,12.91,193.14,193.05,7.76259646]
[1722227107746,12.91,193.12,193.05,12.91]
[1722227107953,12.91,193.11,193.05,12.91]
[1722227108255,12.91,193.12,193.01,8.79835617]
[1722227108462,12.91,193.12,193.02,1.03575952]
[1722227108655,12.91,193.13,193.06,12.91]
[1722227108870,12.91,193.13,193.07,12.91]
[1722227109267,12.91,193.14,193.07,12.91]
[1722227109565,12.91,193.14,193.08,12.91]
[1722227109876,21.9258,193.15,193.1,12.91]
[1722227110042,6.5557,193.15,193.12,12.91]
[1722227110242,6.5557,193.15,193.13,20.0]
[1722227110443,6.5557,193.15,193.13,32.91]
[1722227110863,6.5557,193.15,193.14,12.91]
[1722227111751,6.5557,193.15,193.13,20.0]
[1722227112070,6.5557,193.15,193.12,20.0]
[1722227112250,6.5557,193.15,193.12,32.91]
[1722227113656,0.7002087,193.17,193.12,32.91]
[1722227114056,0.7002087,193.17,193.13,12.91]
[1722227114369,0.7002087,193.17,193.14,12.91]
[1722227118557,0.7002087,193.17,193.12,20.0]
[1722227118558,0.7002087,193.17,193.16,12.91]
[1722227118897,0.7002087,193.17,193.16,32.91]
[1722227121949,0.7002087,193.17,193.16,20.0]
[1722227122352,0.7002087,193.17,193.15,20.0]
[1722227122682,0.7002087,193.17,193.14,20.0]
[1722227124075,0.7002087,193.17,193.16,12.91]
[1722227124277,0.7002087,193.17,193.16,32.91]
[1722227124500,0.7002087,193.17,193.16,33.08]
[1722227124657,0.7002087,193.17,193.16,20.0]
[1722227124862,0.7002087,193.17,193.16,12.91]
[1722227125057,0.7002087,193.17,193.16,20.0]
[1722227125659,0.7002087,193.17,193.12,12.91]
[1722227125859,0.7002087,193.17,193.13,20.0]
[1722227126591,0.7002087,193.17,193.15,12.91]
[1722227126777,0.7002087,193.17,193.16,20.0]
[1722227126976,0.7002087,193.17,193.16,32.91]
[1722227129263,0.7002087,193.17,193.16,33.08]
[1722227129886,0.7002087,193.17,193.16,33.25]
[1722227130386,0.7002087,193.17,193.16,20.0]
[1722227130590,0.7002087,193.17,193.16,32.91]
[1722227134185,0.7002087,193.17,193.16,20.0]
[1722227134388,0.7002087,193.17,193.16,32.91]
[1722227135681,0.7002087,193.17,193.16,20.0]
[1722227136773,0.7002087,193.17,193.16,32.91]
[1722227139374,0.7002087,193.17,193.16,33.25]
[1722227141480,0.7002087,193.17,193.16,33.08]
[1722227142073,0.7002087,193.17,193.16,33.25]
[1722227147799,6.4274,193.23,193.16,78.25]
[1722227147997,6.4274,193.23,193.22,12.91]
[1722227148197,6.4869,193.27,193.22,12.91]
[1722227148410,6.4869,193.27,193.25,12.91]
[1722227148696,6.4869,193.27,193.26,12.91]
[1722227148915,6.4869,193.27,193.25,12.91]
[1722227149473,6.4869,193.27,193.24,12.91]
[1722227149694,6.4869,193.27,193.25,32.91]
[1722227150394,6.4869,193.27,193.23,12.91]
[1722227150597,6.4869,193.27,193.24,32.91]
[1722227151490,6.4869,193.27,193.24,20.0]
[1722227151805,6.4869,193.27,193.23,20.0]
[1722227152903,19.3969,193.27,193.21,12.91]
[1722227153103,19.3969,193.27,193.22,20.0]
[1722227155905,19.3969,193.27,193.21,20.0]
[1722227156430,12.91,193.26,193.21,20.0]
[1722227156594,12.91,193.26,193.19,12.91]
[1722227156796,12.91,193.26,193.2,32.91]
[1722227156984,12.91,193.26,193.2,20.0]
[1722227157707,12.91,193.26,193.2,32.91]
[1722227158697,20.43534733,193.27,193.2,32.91]
[1722227159097,20.43534733,193.27,193.2,20.0]
[1722227159318,20.43534733,193.27,193.2,12.91]
[1722227159490,20.43534733,193.27,193.21,20.0]
[1722227159894,19.3969,193.27,193.21,20.0]
[1722227160507,6.4869,193.27,193.21,32.91]
[1722227160886,6.4869,193.27,193.23,12.91]
[1722227161391,6.4869,193.27,193.25,12.91]
[1722227161897,6.4869,193.27,193.26,12.91]
[1722227162612,6.4869,193.27,193.25,12.91]
[1722227162806,6.4656,193.34,193.26,32.91]
[1722227162996,6.4656,193.34,193.25,0.17]
[1722227163192,6.4656,193.34,193.29,12.91]
[1722227163513,6.4656,193.34,193.3,12.91]
[1722227163691,6.4656,193.34,193.32,12.91]
[1722227164516,1.0,193.35,193.33,12.91]
[1722227164708,1.0,193.35,193.34,12.91]
[1722227165005,1.0,193.35,193.32,12.91]
[1722227165201,1.0,193.35,193.33,20.0]
[1722227165892,1.0,193.35,193.33,32.91]
[1722227166609,1.0,193.35,193.33,20.0]
[1722227167806,1.0,193.35,193.25,0.17]
[1722227168011,1.0,193.35,193.3,12.91]
[1722227168307,1.0,193.35,193.31,20.0]
[1722227169396,1.0,193.35,193.29,12.91]
[1722227169599,1.0,193.35,193.3,20.0]
[1722227171218,13.91,193.35,193.3,20.0]
[1722227171433,13.91,193.35,193.29,20.0]
[1722227171599,13.91,193.35,193.2,58.23972622]
[1722227171600,12.91,193.33,193.27,12.91]
[1722227171802,12.91,193.33,193.26,12.91]
[1722227172412,12.91,193.32,193.26,12.91]
[1722227173701,12.91,193.32,193.21,19.69489608]
[1722227173906,12.91,193.3,193.21,2.12892086]
[1722227174105,12.91,193.3,193.16,17.67372902]
[1722227174106,12.91,193.26,193.16,17.67372902]
[1722227174313,35.2072,193.27,193.21,12.91]
[1722227175599,35.2072,193.27,193.22,20.0]
[1722227178405,12.91,193.23,193.17,12.91]
[1722227178806,12.91,193.24,193.17,12.91]
[1722227179411,22.2972,193.27,193.16,12.91]
[1722227179412,13.94844733,193.23,193.16,12.91]